bitfinex/quotes_SOLUSD_20260310
["timestamp","ask_amount","ask_price","bid_price","bid_amount"]
[1773108568025,0.64631226,85.612,85.583,0.45316804]
[1773108571034,0.64631226,85.61,85.585,0.4496635]
[1773108571339,0.64631226,85.609,85.581,0.4496635]
[1773108572933,0.64631226,85.609,85.576,0.44740543]
[1773108573430,0.63597496,85.607,85.58,4.64268567]
[1773108573730,0.63597496,85.607,85.581,0.44518785]
[1773108575638,0.63597496,85.612,85.59,4.63829624]
[1773108575837,0.63597496,85.612,85.59,0.443016]
[1773108576135,0.63597496,85.612,85.591,0.443016]
[1773108576318,0.63597496,85.622,85.591,0.443016]
[1773108576509,0.63597496,85.622,85.6,4.19528024]
[1773108577625,0.63597496,85.62,85.598,0.443016]
[1773108578245,0.63597496,85.62,85.593,11.68306846]
[1773108578246,0.63597496,85.62,85.594,0.44089982]
[1773108578834,0.63597496,85.62,85.592,0.43986966]
[1773108579141,0.63597496,85.62,85.59,4.19528024]
[1773108579515,0.63597496,85.62,85.591,11.68347139]
[1773108579713,0.63597496,85.618,85.591,11.68347139]
[1773108580315,0.63597496,85.618,85.588,0.43986966]
[1773108580537,0.63597496,85.618,85.589,0.43782377]
[1773108580834,0.63597496,85.618,85.591,0.43782377]
[1773108582134,0.63597496,85.649,85.601,0.43682809]
[1773108582327,4.19528024,85.64,85.601,0.43682809]
[1773108583040,0.63597496,85.639,85.601,0.43682809]
[1773108583939,0.63597496,85.637,85.603,0.43484937]
[1773108586037,0.63597496,85.629,85.602,11.68197004]
[1773108586940,0.63597496,85.629,85.603,0.43197179]
[1773108588021,0.63597496,85.629,85.604,11.68169711]
[1773108589237,0.63597496,85.629,85.606,11.68142419]
[1773108590838,0.63597496,85.629,85.607,0.42738114]
[1773108591746,0.63597496,85.629,85.608,11.68115129]
[1773108592246,0.61544177,85.627,85.601,0.42649951]
[1773108592453,0.61544177,85.627,85.595,11.68286934]
[1773108592644,0.61544177,85.627,85.595,12.10849354]
[1773108592948,0.61544177,85.627,85.596,0.4256242]
[1773108593850,0.61544177,85.625,85.598,0.42475289]
[1773108596443,0.61544177,85.625,85.601,0.42304526]
[1773108597951,0.61544177,85.625,85.602,11.68197004]
[1773108599545,0.61544177,85.631,85.603,0.4197495]
[1773108599857,4.29258558,85.65,85.611,0.6468988]
[1773108600041,0.1,85.65,85.621,0.6468988]
[1773108600549,11.67555955,85.649,85.621,0.6468988]
[1773108601752,11.67583219,85.647,85.621,0.6468988]
[1773108602050,0.61544177,85.646,85.621,0.6468988]
[1773108602961,0.61544177,85.646,85.62,4.19258558]
[1773108602962,0.61544177,85.646,85.623,0.6468988]
[1773108603253,0.61544177,85.646,85.622,11.67924131]
[1773108603254,0.1,85.65,85.631,0.6468988]
[1773108603636,11.67283381,85.669,85.639,0.62431459]
[1773108604058,0.1,85.67,85.651,0.62431459]
[1773108604251,4.29258558,85.69,85.64,11.67678654]
[1773108604252,4.29258558,85.69,85.661,0.62431459]
[1773108604432,11.67010934,85.689,85.661,0.62431459]
[1773108605370,0.1,85.69,85.661,11.67381057]
[1773108605538,0.69442222,85.69,85.662,0.62431459]
[1773108606758,12.26453156,85.689,85.662,0.62431459]
[1773108606952,0.59442222,85.688,85.662,0.62431459]
[1773108607347,0.59442222,85.688,85.66,4.19258558]
[1773108607348,0.59442222,85.688,85.664,0.62431459]
[1773108607744,0.59442222,85.688,85.645,0.62431459]
[1773108607934,0.59442222,85.669,85.631,0.62431459]
[1773108608642,0.59442222,85.669,85.632,0.62431459]
[1773108609144,0.59442222,85.669,85.631,11.6780138]
[1773108609145,0.59442222,85.667,85.634,0.62431459]
[1773108611458,0.59442222,85.667,85.636,0.62431459]
[1773108613070,0.59442222,85.667,85.638,0.62431459]
[1773108613970,0.59442222,85.665,85.638,0.62431459]
[1773108614868,0.59442222,85.665,85.64,0.62431459]
[1773108616873,0.59442222,85.665,85.641,11.6766502]
[1773108617061,0.59442222,85.665,85.642,0.62431459]
[1773108618180,11.67351512,85.664,85.642,0.62431459]
[1773108618386,0.59442222,85.649,85.606,0.62431459]
[1773108618674,0.59442222,85.649,85.605,11.68156065]
[1773108618675,0.59442222,85.669,85.641,0.62431459]
[1773108618854,0.59442222,85.679,85.651,0.62431459]
[1773108619060,0.59442222,85.677,85.651,0.62431459]
[1773108619262,0.59442222,85.677,85.652,0.62431459]
[1773108619469,0.59442222,85.689,85.661,0.62431459]
[1773108620862,0.59442222,85.688,85.661,0.62431459]
[1773108621071,0.59442222,85.669,85.632,0.62431459]
[1773108621568,0.59442222,85.679,85.641,0.62431459]
[1773108622267,0.59442222,85.679,85.651,0.62431459]
[1773108622575,11.67105868,85.683,85.661,0.62431459]
[1773108622749,0.59442222,85.682,85.661,0.62431459]
[1773108624274,0.59442222,85.681,85.661,0.62431459]
[1773108626174,0.59442222,85.681,85.662,11.71426172]
[1773108627169,0.59442222,85.681,85.662,0.62431459]
[1773108627367,0.1,85.69,85.662,0.62431459]
[1773108628171,0.69442222,85.69,85.662,0.62431459]
[1773108628370,0.59442222,85.688,85.662,0.62431459]
[1773108629678,0.59442222,85.688,85.663,11.6736514]
[1773108629976,0.59442222,85.688,85.664,0.62431459]
[1773108630174,0.1,85.69,85.664,0.62431459]
[1773108630357,0.69442222,85.69,85.664,0.62431459]
[1773108630557,0.1,85.69,85.664,0.62431459]
[1773108631157,0.1,85.69,85.671,0.62431459]
[1773108631372,0.1,85.7,85.681,0.62431459]
[1773108631666,0.1,85.72,85.691,0.62431459]
[1773108631667,0.59442222,85.713,85.691,0.62431459]
[1773108631877,0.59442222,85.713,85.693,0.62431459]
[1773108632381,0.1,85.72,85.693,0.62431459]
[1773108633163,0.1,85.72,85.701,0.62431459]
[1773108633882,0.1,85.72,85.702,0.5992341]
[1773108635279,0.1,85.72,85.704,0.5992341]
[1773108637377,0.1,85.72,85.7,4.19258558]
[1773108637378,0.1,85.72,85.706,0.5992341]
[1773108639477,0.60134832,85.719,85.701,11.66847528]
[1773108639680,0.1,85.72,85.681,0.5992341]
[1773108639681,0.60134832,85.709,85.681,0.5992341]
[1773108640270,0.60134832,85.709,85.671,40.85396458]
[1773108640271,0.60134832,85.699,85.672,0.5992341]
[1773108640591,0.60134832,85.689,85.659,11.67413251]
[1773108640780,4.29258558,85.72,85.659,11.67413251]
[1773108640781,0.60134832,85.679,85.659,11.67413251]
[1773108641287,0.60134832,85.679,85.659,12.27336661]
[1773108641861,0.60134832,85.679,85.66,0.5992341]
[1773108642083,0.60134832,85.689,85.66,0.5992341]
[1773108643182,0.60134832,85.688,85.66,0.5992341]
[1773108643697,0.60134832,85.679,85.652,0.5992341]
[1773108645895,0.60134832,85.679,85.654,0.5992341]
[1773108648791,0.60134832,85.678,85.655,11.67474169]
[1773108648976,0.60134832,85.678,85.655,12.27397579]
[1773108649297,0.60134832,85.678,85.656,0.5992341]
[1773108649882,0.60134832,85.678,85.657,11.6744691]
[1773108650476,0.60134832,85.678,85.658,0.5992341]
[1773108652977,0.60134832,85.678,85.653,0.59846599]
[1773108654398,0.60288311,85.687,85.653,0.59846599]
[1773108656882,0.60288311,85.687,85.651,40.86350422]
[1773108656883,0.60288311,85.685,85.655,0.59846599]
[1773108658401,4.28780155,85.72,85.671,0.59846599]
[1773108658402,0.60288311,85.698,85.671,0.59846599]
[1773108659284,0.60288311,85.696,85.666,11.67319579]
[1773108659486,0.60288311,85.689,85.666,11.67319579]
[1773108660793,0.60288311,85.689,85.667,0.59846599]
[1773108661698,0.60288311,85.687,85.661,12.27238994]
[1773108661899,0.60288311,85.687,85.662,0.59846599]
[1773108662195,11.67024554,85.688,85.662,0.59846599]
[1773108662196,0.60288311,85.69,85.662,0.59846599]
[1773108662400,0.60288311,85.679,85.651,11.67528692]
[1773108662709,0.60288311,85.679,85.652,0.59846599]
[1773108663410,0.62553539,85.669,85.635,0.64876585]
[1773108663706,0.62553539,85.669,85.631,29.1947224]
[1773108663707,0.62553539,85.667,85.637,0.64876585]
[1773108664204,0.62553539,85.649,85.618,0.64876585]
[1773108664386,40.85539524,85.668,85.611,11.68074196]
[1773108664387,0.62553539,85.639,85.612,0.64876585]
[1773108664703,0.62553539,85.629,85.606,0.64876585]
[1773108665197,0.62553539,85.652,85.611,0.64876585]
[1773108665422,0.62553539,85.649,85.611,0.64876585]
[1773108667009,4.18780155,85.64,85.613,0.64876585]
[1773108667506,0.62553539,85.643,85.613,0.64876585]
[1773108667803,0.62553539,85.657,85.621,0.64876585]
[1773108668184,58.35287182,85.686,85.612,40.88211932]
[1773108668185,0.62553539,85.665,85.631,0.64876585]
[1773108668890,0.62553539,85.659,85.631,0.64876585]
[1773108669188,0.62553539,85.649,85.622,0.64876585]
[1773108669702,0.62553539,85.649,85.6,4.18780155]
[1773108669703,0.62553539,85.639,85.616,11.68004877]
[1773108670306,0.62553539,85.639,85.617,0.64876585]
[1773108671389,0.62553539,85.639,85.619,0.64876585]
[1773108674814,0.62553539,85.639,85.62,11.67951413]
[1773108677214,0.62553539,85.639,85.62,0.64876585]
[1773108679828,58.36299544,85.671,85.611,40.88244812]
[1773108679829,4.18780155,85.66,85.631,0.64876585]
[1773108680123,0.62553539,85.67,85.651,0.64876585]
[1773108680294,0.62553539,85.687,85.661,0.64876585]
[1773108681418,0.62553539,85.687,85.66,4.18780155]
[1773108681898,11.67028453,85.688,85.624,3.69383402]
[1773108681899,0.62553539,85.685,85.655,12.32350754]
[1773108682098,0.62553539,85.685,85.656,0.64876585]
[1773108686826,11.67079034,85.684,85.657,11.6744691]
[1773108687001,0.62553539,85.683,85.657,12.32323495]
[1773108687510,0.62553539,85.683,85.658,0.64876585]
[1773108689926,0.62553539,85.683,85.66,0.64876585]
[1773108690120,0.62553539,85.683,85.661,0.64876585]
[1773108690323,0.62553539,85.69,85.661,0.64876585]
[1773108691020,0.62553539,85.689,85.661,0.64876585]
[1773108691222,0.62553539,85.689,85.653,11.6749884]
[1773108691834,0.62553539,85.679,85.653,11.6749884]
[1773108692018,0.62553539,85.677,85.653,11.6749884]
[1773108692732,0.62553539,85.677,85.653,12.32375425]
[1773108692934,0.62553539,85.677,85.654,0.64876585]
[1773108695820,0.62553539,85.677,85.656,0.60475117]
[1773108696435,11.67114042,85.682,85.661,0.60475117]
[1773108697233,0.63342299,85.683,85.661,0.60475117]
[1773108697438,0.63342299,85.698,85.671,0.60475117]
[1773108697936,0.63342299,85.696,85.671,0.60475117]
[1773108698240,0.63342299,85.696,85.665,12.27804976]
[1773108698624,0.63342299,85.689,85.665,12.27804976]
[1773108699926,0.63342299,85.689,85.666,0.60475117]
[1773108700115,4.18780155,85.69,85.666,0.60475117]
[1773108700116,0.63342299,85.687,85.666,0.60475117]
[1773108700521,0.63342299,85.687,85.667,11.67310633]
[1773108706535,0.63342299,85.687,85.668,0.60475117]
[1773108707136,0.63342299,85.687,85.669,12.27758498]
[1773108707336,0.63342299,85.687,85.67,0.60475117]
[1773108708632,0.63342299,85.687,85.664,12.31027028]
[1773108710250,0.63342299,85.687,85.665,0.6368484]
[1773108712344,0.60239838,85.685,85.655,0.6368484]
[1773108715638,0.60239838,85.683,85.656,0.6368484]
[1773108720947,0.60239838,85.681,85.657,12.3113175]
[1773108721857,0.60239838,85.681,85.658,0.6368484]
[1773108722443,0.60239838,85.681,85.649,0.6368484]
[1773108723357,0.6085404,85.669,85.643,0.6368484]
[1773108723734,0.6085404,85.669,85.644,0.62154027]
[1773108725443,0.6085404,85.667,85.644,0.62154027]
[1773108725758,11.67246488,85.672,85.646,0.62154027]
[1773108725960,0.6085404,85.708,85.661,0.62154027]
[1773108726150,0.6085404,85.708,85.671,0.62154027]
[1773108726345,0.6085404,85.708,85.681,0.62154027]
[1773108726745,0.6085404,85.708,85.671,0.62154027]
[1773108726956,40.83585153,85.709,85.645,40.86636697]
[1773108726957,0.6085404,85.679,85.645,11.67610485]
[1773108727150,0.6085404,85.679,85.646,0.62154027]
[1773108728058,11.67160764,85.678,85.648,0.62154027]
[1773108728255,12.28014804,85.678,85.648,0.62154027]
[1773108728461,12.28014804,85.678,85.651,0.62154027]
[1773108728763,0.6085404,85.677,85.651,0.62154027]
[1773108729267,0.6085404,85.677,85.641,0.62154027]
[1773108729662,0.6085404,85.669,85.624,0.62154027]
[1773108729868,0.6085404,85.669,85.631,0.62154027]
[1773108730162,0.6085404,85.667,85.633,0.62154027]
[1773108731567,12.28074956,85.674,85.641,0.62154027]
[1773108731762,11.67220916,85.674,85.641,0.62154027]
[1773108732068,0.6085404,85.673,85.641,0.62154027]
[1773108733368,11.67242506,85.672,85.643,0.62154027]
[1773108733571,12.28096546,85.672,85.643,0.62154027]
[1773108734173,0.6085404,85.672,85.643,0.62154027]
[1773108735369,0.6085404,85.669,85.643,0.62154027]
[1773108736571,0.6085404,85.669,85.645,0.62154027]
[1773108737855,11.67297007,85.668,85.645,0.62154027]
[1773108738055,0.6085404,85.667,85.645,0.62154027]
[1773108740673,0.6085404,85.665,85.641,0.62154027]
[1773108741868,0.6085404,85.692,85.661,0.62154027]
[1773108742790,0.6085404,85.69,85.663,0.62154027]
[1773108743156,0.6085404,85.697,85.671,0.62154027]
[1773108744469,0.6085404,85.689,85.654,0.62154027]
[1773108744662,0.6085404,85.679,85.654,0.62154027]
[1773108744863,0.6085404,85.677,85.654,0.62154027]
[1773108745678,0.6085404,85.677,85.654,12.29631246]
[1773108746489,0.6085404,85.688,85.661,0.62154027]
[1773108746958,0.6085404,85.688,85.663,0.62154027]
[1773108747768,0.6085404,85.686,85.663,0.62154027]
[1773108749861,11.67065414,85.685,85.663,0.62154027]
[1773108751563,0.6085404,85.679,85.652,0.62154027]
[1773108751771,11.67065414,85.685,85.652,0.62154027]
[1773108752175,11.67065414,85.685,85.653,11.6750143]
[1773108752392,11.67065414,85.685,85.654,0.62154027]
[1773108755701,0.6085404,85.688,85.654,0.62154027]
[1773108755907,4.18818983,85.7,85.671,0.63243009]
[1773108756107,0.61976099,85.7,85.671,0.63243009]
[1773108757696,0.61976099,85.699,85.671,0.63243009]
[1773108758009,0.61976099,85.689,85.662,0.63243009]
[1773108758895,0.61976099,85.679,85.642,0.63243009]
[1773108759798,0.61976099,85.679,85.644,0.63243009]
[1773108760101,11.67160764,85.678,85.644,0.63243009]
[1773108760302,0.61976099,85.677,85.644,0.63243009]
[1773108761801,4.18818983,85.69,85.651,0.63243009]
[1773108762000,0.61976099,85.688,85.653,0.63243009]
[1773108762392,0.61976099,85.669,85.647,0.63243009]
[1773108763996,11.67297007,85.668,85.647,0.63243009]
[1773108765010,11.67297007,85.668,85.628,0.63243009]
[1773108765011,0.61976099,85.659,85.628,0.63243009]
[1773108766012,11.67432421,85.659,85.631,0.63243009]
[1773108766706,12.2940852,85.659,85.631,0.63243009]
[1773108768206,12.2940852,85.659,85.633,0.62928323]
[1773108768786,4.18818983,85.66,85.633,0.62928323]
[1773108768992,11.67364688,85.664,85.633,0.62928323]
[1773108769200,12.30892553,85.664,85.633,0.62928323]
[1773108769810,11.67378767,85.662,85.635,0.62928323]
[1773108770393,0.63527865,85.669,85.635,0.62928323]
[1773108771611,4.18818983,85.69,85.651,0.62928323]
[1773108771807,12.30552419,85.688,85.661,0.62928323]
[1773108772307,0.63527865,85.687,85.661,0.62928323]
[1773108775612,0.63527865,85.685,85.661,0.62928323]
[1773108778714,3.69383402,85.712,85.66,11.67397793]
[1773108778715,0.63527865,85.699,85.663,0.62928323]
[1773108779219,0.63527865,85.699,85.671,0.62928323]
[1773108779416,0.63527865,85.698,85.662,11.67378767]
[1773108779622,0.63527865,85.689,85.662,11.67378767]
[1773108779805,0.63527865,85.689,85.663,0.62928323]
[1773108780501,0.63527865,85.689,85.662,11.67378767]
[1773108780702,11.67024554,85.688,85.661,0.62928323]
[1773108780915,0.63527865,85.687,85.661,0.62928323]
[1773108782405,0.63527865,85.679,85.652,0.62928323]
[1773108782904,0.63527865,85.679,85.651,11.67528692]
[1773108782905,0.63527865,85.678,85.653,12.30429753]
[1773108783224,0.63527865,85.659,85.63,0.62928323]
[1773108783520,0.63527865,85.659,85.631,0.62928323]
[1773108785402,4.18731772,85.66,85.631,0.62928323]
[1773108785403,0.6328457,85.657,85.631,0.62928323]
[1773108785606,0.6328457,85.657,85.632,11.67787742]
[1773108785801,0.6328457,85.657,85.632,12.29181216]
[1773108786002,0.6328457,85.657,85.633,0.61393474]
[1773108786709,0.6328457,85.657,85.628,0.61393474]
[1773108788926,11.67460539,85.656,85.629,11.67828656]
[1773108789120,11.67460539,85.656,85.63,0.61393474]
[1773108789618,0.6328457,85.657,85.631,0.61393474]
[1773108791919,0.6328457,85.657,85.633,0.61393474]
[1773108793424,4.18731772,85.66,85.635,0.61393474]
[1773108793720,0.6328457,85.665,85.635,0.61393474]
[1773108794232,0.6328457,85.665,85.634,11.67760468]
[1773108794233,11.67283381,85.669,85.641,0.61393474]
[1773108794430,58.3423422,85.702,85.634,11.67760468]
[1773108794431,0.6328457,85.689,85.651,0.61393474]
[1773108795527,0.6328457,85.687,85.653,0.61393474]
[1773108796209,0.6328457,85.687,85.661,0.61393474]
[1773108796722,12.30159329,85.699,85.671,0.61393474]
[1773108796923,12.30159329,85.699,85.652,40.86302712]
[1773108796924,0.6328457,85.689,85.661,0.61393474]
[1773108797101,0.6328457,85.689,85.655,0.61393474]
[1773108797506,0.6328457,85.689,85.661,0.61393474]
[1773108797711,0.6328457,85.698,85.662,0.61393474]
[1773108798119,0.6328457,85.689,85.662,0.61393474]
[1773108799807,11.67024554,85.688,85.662,0.61393474]
[1773108800122,0.6328457,85.687,85.662,0.61393474]
[1773108800614,0.6328457,85.687,85.664,0.61393474]
[1773108802621,11.67051793,85.686,85.664,0.61393474]
[1773108803508,11.66999665,85.69,85.666,0.61393474]
[1773108803714,11.66938295,85.695,85.671,0.61393474]
[1773108804428,0.6328457,85.694,85.671,0.61393474]
[1773108805930,0.6328457,85.694,85.673,0.61393474]
[1773108806323,0.6328457,85.693,85.673,0.61393474]
[1773108808313,0.6328457,85.691,85.673,0.61393474]
[1773108808709,0.6328457,85.691,85.667,11.67300178]
[1773108808921,0.6328457,85.691,85.668,0.61393474]
[1773108811213,0.6328457,85.691,85.669,0.61393474]
[1773108811410,12.30203965,85.696,85.669,0.61393474]
[1773108811630,0.6328457,85.699,85.671,0.61393474]
[1773108812738,0.6328457,85.698,85.671,0.61393474]
[1773108815920,12.29409996,85.697,85.673,0.63006105]
[1773108816123,0.62508005,85.696,85.673,0.63006105]
[1773108816456,4.18731772,85.7,85.673,0.63006105]
[1773108816732,4.28731772,85.72,85.691,0.63006105]
[1773108816733,11.66738615,85.709,85.691,0.63006105]
[1773108820235,0.62508005,85.712,85.691,0.63006105]
[1773108820624,11.66631784,85.717,85.693,0.63006105]
[1773108822338,0.62508005,85.719,85.693,0.63006105]
[1773108822931,0.62508005,85.719,85.687,12.30034656]
[1773108823137,0.62508005,85.709,85.687,0.63006105]
[1773108826626,12.29249371,85.709,85.687,0.63006105]
[1773108827846,0.57806969,85.708,85.687,0.63006105]
[1773108830747,0.57806969,85.708,85.689,0.5782476]
[1773108831156,11.66741366,85.709,85.689,0.5782476]
[1773108831344,11.66741366,85.709,85.691,0.5782476]
[1773108832030,0.57806969,85.714,85.691,0.5782476]
[1773108832226,0.1,85.72,85.701,0.5782476]
[1773108833366,0.1,85.72,85.703,0.5782476]
[1773108834524,0.1,85.72,85.705,0.5782476]
[1773108836746,0.1,85.72,85.707,0.5782476]
[1773108840634,0.1,85.72,85.71,4.1827933]
[1773108840835,0.1,85.72,85.711,0.5782476]
[1773108843157,0.57806969,85.719,85.7,0.5782476]
[1773108843451,0.57806969,85.719,85.69,4.1827933]
[1773108843639,0.57806969,85.719,85.691,0.58505939]
[1773108844045,0.59826839,85.709,85.676,0.58505939]
[1773108844247,0.59826839,85.709,85.67,4.1827933]
[1773108844248,0.59826839,85.707,85.678,0.58505939]
[1773108845953,0.59826839,85.707,85.68,0.58505939]
[1773108846257,0.59826839,85.707,85.681,0.58505939]
[1773108847048,11.66666205,85.715,85.681,0.58505939]
[1773108847445,0.1,85.72,85.701,0.58505939]
[1773108847852,0.1,85.72,85.702,0.58505939]
[1773108848059,0.59826839,85.719,85.69,4.1827933]
[1773108848245,0.59826839,85.719,85.685,11.67053644]
[1773108848446,0.59826839,85.719,85.686,0.58505939]
[1773108849959,0.59826839,85.717,85.688,0.58505939]
[1773108851452,0.59826839,85.717,85.684,0.58505939]
[1773108851836,40.83156396,85.718,85.686,0.58505939]
[1773108851837,0.59826839,85.715,85.686,0.58505939]
[1773108854868,0.59826839,85.713,85.686,0.58505939]
[1773108858053,0.59826839,85.711,85.686,0.58505939]
[1773108859263,11.66650283,85.716,85.691,0.58505939]
[1773108859766,11.76594228,85.72,85.701,0.58505939]
[1773108860150,0.69826839,85.72,85.701,0.58505939]
[1773108860557,0.69826839,85.72,85.702,0.58505939]
[1773108861066,0.1,85.72,85.702,0.58505939]
[1773108861573,0.1,85.72,85.703,0.58505939]
[1773108862978,0.59826839,85.719,85.703,0.58505939]
[1773108864458,0.1,85.72,85.703,0.58505939]
[1773108870385,0.1,85.72,85.705,0.58505939]
[1773108871777,0.69826839,85.72,85.7,0.58505939]
[1773108871982,0.59826839,85.719,85.685,0.58505939]
[1773108872185,4.2827933,85.72,85.687,0.58505939]
[1773108872186,0.59826839,85.717,85.687,0.58505939]
[1773108872371,0.59826839,85.717,85.691,0.58505939]
[1773108875197,11.66643333,85.716,85.691,0.58505939]
[1773108875694,0.60252567,85.715,85.691,0.58505939]
[1773108876389,4.2827933,85.72,85.69,15.85263338]
[1773108876390,11.66611571,85.719,85.693,0.58860255]
[1773108876596,0.60252567,85.718,85.693,0.58860255]
[1773108876797,0.60252567,85.718,85.688,11.67021097]
[1773108876973,0.60252567,85.718,85.689,0.58860255]
[1773108877177,0.60252567,85.718,85.688,11.67021097]
[1773108877178,0.60252567,85.718,85.691,0.58860255]
[1773108879089,0.60252567,85.716,85.691,0.58860255]
[1773108879295,0.60252567,85.716,85.692,0.58860255]
[1773108880084,11.66629723,85.717,85.692,0.58860255]
[1773108880902,0.60252567,85.716,85.692,0.58860255]
[1773108882097,0.60252567,85.716,85.694,0.58860255]
[1773108884001,0.60252567,85.716,85.696,0.58860255]
[1773108886305,0.60252567,85.715,85.691,0.58860255]
[1773108887687,0.60252567,85.713,85.693,0.58860255]
[1773108890006,0.58397899,85.711,85.691,11.66970585]
[1773108890412,0.58397899,85.711,85.688,0.60319207]
[1773108891413,0.58397899,85.709,85.688,0.60319207]
[1773108892808,0.58397899,85.714,85.691,0.60319207]
[1773108894111,0.58397899,85.712,85.691,0.60319207]
[1773108895413,11.66684166,85.713,85.693,0.60319207]
[1773108896299,0.58397899,85.714,85.693,0.60319207]
[1773108897816,0.58397899,85.714,85.685,0.60319207]
[1773108899723,0.58397899,85.712,85.687,0.60319207]
[1773108902024,11.66624678,85.718,85.691,0.60319207]
[1773108902215,0.58397899,85.717,85.691,0.60319207]
[1773108906025,0.56690497,85.715,85.691,0.60319207]
[1773108906207,0.56690497,85.715,85.688,11.67024554]
[1773108906608,0.56690497,85.715,85.689,0.56669025]
[1773108907240,0.56690497,85.713,85.689,0.56669025]
[1773108908929,0.56690497,85.711,85.689,0.56669025]
[1773108909327,0.56690497,85.711,85.683,12.23750994]
[1773108909504,0.56690497,85.709,85.684,0.56669025]
[1773108911312,0.56690497,85.709,85.683,11.67081969]
[1773108911313,0.56690497,85.699,85.663,0.56669025]
[1773108911517,0.56690497,85.689,85.663,0.56669025]
[1773108912921,0.56690497,85.688,85.665,0.56669025]
[1773108915015,11.67038173,85.687,85.665,0.56669025]
[1773108915212,0.56690497,85.686,85.665,0.56669025]
[1773108915842,0.56690497,85.679,85.648,0.56669025]
[1773108916040,0.56690497,85.679,85.649,0.56669025]
[1773108917335,4.1847431,85.68,85.651,0.56669025]
[1773108917336,0.56690497,85.677,85.651,0.56669025]
[1773108918022,0.56690497,85.669,85.65,11.67542323]
[1773108919139,0.56690497,85.677,85.651,0.56669025]
[1773108919441,12.23802158,85.682,85.651,0.56669025]
[1773108919646,11.67010934,85.689,85.661,0.56669025]
[1773108919828,0.56690497,85.695,85.671,0.56669025]
[1773108920150,12.23618894,85.696,85.671,0.56669025]
[1773108920357,0.56690497,85.695,85.671,0.56669025]
[1773108920936,0.56690497,85.689,85.661,0.56669025]
[1773108921242,0.56690497,85.679,85.653,0.56669025]
[1773108921823,0.56690497,85.677,85.653,0.56669025]
[1773108922633,0.56690497,85.677,85.654,12.24156824]
[1773108922823,0.56690497,85.677,85.655,0.56669025]
[1773108924440,0.56690497,85.675,85.655,0.56669025]
[1773108924641,0.56690497,85.675,85.656,11.67460539]
[1773108924834,0.56690497,85.675,85.657,0.56669025]
[1773108925725,0.56690497,85.675,85.653,0.56669025]
[1773108928344,0.56690497,85.659,85.63,0.56669025]
[1773108929345,0.56690497,85.649,85.628,11.67836766]
[1773108929642,15.86025731,85.65,85.628,11.67836766]
[1773108929643,4.1847431,85.65,85.629,0.56669025]
[1773108929845,11.67283381,85.669,85.631,0.56669025]
[1773108931639,0.56690497,85.668,85.633,0.56669025]
[1773108933134,0.56690497,85.666,85.635,0.56669025]
[1773108933338,4.1847431,85.66,85.635,0.56669025]
[1773108934639,4.1847431,85.67,85.637,0.54383306]
[1773108935446,11.67254274,85.672,85.641,0.54383306]
[1773108937449,4.1847431,85.67,85.643,0.54383306]
[1773108937652,0.53642588,85.669,85.643,0.54383306]
[1773108941541,0.53642588,85.669,85.642,11.67651386]
[1773108941542,0.53642588,85.674,85.645,0.54383306]
[1773108941849,11.6716743,85.678,85.645,0.54383306]
[1773108942255,12.20810018,85.678,85.645,0.54383306]
[1773108942753,0.53642588,85.689,85.651,0.54383306]
[1773108943554,0.53642588,85.687,85.653,0.54383306]
[1773108943956,0.53642588,85.679,85.653,0.54383306]
[1773108944147,11.67024554,85.688,85.625,62.8]
[1773108944148,0.53642588,85.669,85.642,0.54383306]
[1773108944544,0.53642588,85.659,85.642,0.54383306]
[1773108945353,0.53642588,85.659,85.641,11.6766502]
[1773108947367,0.53642588,85.659,85.637,11.6771956]
[1773108947558,0.53642588,85.659,85.638,0.54383306]
[1773108948336,4.1847431,85.67,85.638,0.54383306]
[1773108948541,0.53642588,85.664,85.638,0.54383306]
[1773108949752,0.53642588,85.664,85.64,0.54383306]
[1773108951850,0.54054661,85.67,85.642,0.56394649]
[1773108952667,11.6766502,85.79,85.641,11.6766502]
[1773108952668,0.54054661,85.689,85.651,0.56394649]
[1773108952867,0.54054661,85.709,85.671,0.56394649]
[1773108953657,40.83108761,85.719,85.661,0.56394649]
[1773108953658,0.54054661,85.689,85.661,0.56394649]
[1773108954065,0.54054661,85.687,85.662,0.56394649]
[1773108954554,11.67024554,85.688,85.651,0.56394649]
[1773108954555,0.54054661,85.679,85.651,0.56394649]
[1773108956066,11.67160764,85.678,85.651,0.56394649]
[1773108956251,4.1847431,85.67,85.646,0.56394649]
[1773108956452,0.54054661,85.674,85.646,0.56394649]
[1773108957379,0.54054661,85.687,85.661,0.56394649]
[1773108957555,12.21106454,85.686,85.661,0.56394649]
[1773108957872,0.54054661,85.685,85.661,0.56394649]
[1773108958270,0.54054661,85.683,85.663,0.56394649]
[1773108960062,0.54054661,85.683,85.622,58.39620432]
[1773108960063,0.54054661,85.669,85.637,0.56394649]
[1773108960455,0.54054661,85.659,85.637,0.56394649]
[1773108961157,4.18750814,85.68,85.65,4.18750814]
[1773108961374,11.67106276,85.682,85.651,0.56394649]
[1773108962159,0.54054661,85.682,85.653,0.56394649]
[1773108962555,11.66960875,85.693,85.661,0.56394649]
[1773108963270,0.54054661,85.689,85.661,0.56394649]
[1773108963960,4.75149754,85.69,85.663,0.5342249]